[Event "Charlotte Spring GM-A 2024"]
[Site "Charlotte"]
[Date "2024.03.28"]
[Round "1.1"]
[White "Cruz, Cristhian"]
[Black "Wang, Tianqi"]
[Result "1-0"]
[ECO "A36"]
[WhiteElo "2487"]
[BlackElo "2344"]
[Annotator "TA"]
[PlyCount "87"]
[EventDate "2024.03.27"]
[EventType "tourn"]
[EventCountry "USA"]
[SourceTitle "playchess.com"]
[Source "ChessBase"]
[SourceQuality "1"]
[TimeControl "5400+30"]

{[%evp 16,87,31,31,38,31,29,0,11,0,0,0,24,14,25,23,41,25,22,23,21,17,43,52,56,33,36,50,93,92,184,183,286,277,456,454,639,688,701,703,702,682,808,820,874,874,858,857,882,881,864,856,833,812,986,803,1129,690,6307,10937,29970,29971,29971,29972,29972,29973,29972,29973,29951,29959,29977,29978,29978,29979]} 1. c4 {[%emt 0:06:01]} c5 {[%emt 0:00:08]} 2. Nc3 {[%emt 0:00:30]} g6 {[%emt 0:00:09]} 3. g3 {[%emt 0:00:43]} Bg7 {[%emt 0:00:08]} 4. Bg2 {[%emt 0:00:22]} Nc6 {[%emt 0:00:09]} 5. d3 {[%emt 0:00:54]} d6 {[%emt 0:00:14]} 6. e4 {[%emt 0:00:26]} Nf6 {[%emt 0:01:05]} 7. Nge2 {[%emt 0:00:34]} O-O {[%emt 0:00:15]} 8. O-O {[%emt 0:01:13]} Ne8 {[%emt 0:00:25]} 9. Be3 {[%emt 0:01:19]} e5 {[%emt 1:32:27]} 10. f4 {[%emt 0:02:16]} exf4 {[%emt 0:00:00]} 11. Nxf4 {[%emt 0:00:41]} Nc7 {[%emt 0:00:00] The position is equal.} 12. Qd2 {[%emt 0:02:45]} Rb8 {[%emt 0:00:00]} 13. h3 {[%emt 0:12:54]} a6 {[%emt 0:00:00]} 14. Rf2 {[%emt 0:01:32]} Be6 {[%emt 0:00:00]} 15. Raf1 {[%emt 0:03:34]} Qd7 {[%emt 0:00:00]} 16. Kh2 {[%emt 0:00:52]} b5 {[%emt 0:00:00]} 17. b3 {[%emt 0:02:19]} Nd4 {[%emt 0:00:00]} 18. Nce2 {[%emt 0:05:51]} Nxe2 {[%emt 0:00:00]} 19. Nxe2 {[%emt 0:01:18][%cal Bf4e2,Be2g1,Bg1f3][%mdl 32]} Be5 {[%emt 0:00:00]} 20. Ng1 {[%emt 0:10:00]} (20. Bh6 {is interesting.} Rfe8 21. Bg5 Rf8 22. Bf6) 20... Bg7 {[%emt 0:00:00]} 21. Nf3 {[%emt 0:01:07]} a5 {[%emt 0:00:00] Black is on the road to losing.} 22. Qxa5 {[%emt 0:02:45]} b4 {[%emt 0:00:00] [#]} (22... Ra8 $16 {is a better defense.} 23. Qd2 f6 24. cxb5 Qxb5) 23. e5 $1 $18 {[%emt 0:00:48][%cal Be4e5,Be5d6][%mdl 32]} Rfc8 {[%emt 0:05:04]} (23... dxe5 {might work better.} 24. Bxc5 (24. Qxc5 f6 $16) 24... Ra8 25. Qxb4 Na6) 24. exd6 {[%emt 0:07:54]} Ra8 $2 {[%emt 0:01:07]} (24... Ne8 {was called for.} 25. Bxc5 Nxd6) 25. Qxc5 {[%emt 0:02:14][%cal Of3e5] aiming for Ne5!} Nd5 {[%emt 0:00:08]} (25... Ne8 $142) 26. cxd5 {[%emt 0:00:52][%cal Bc4d5,Bd5e6,Be6f7][%mdl 32]} Rxc5 {[%emt 0:00:04]} 27. dxe6 {[%emt 0:00:07]} ({Less strong is} 27. Bxc5 Bxd5 28. Re1 (28. Bxb4 Qb5 $11) 28... Bf8 $16) 27... Qxd6 {[%emt 0:00:03]} 28. exf7+ {[%emt 0:00:52]} Kh8 {[%emt 0:01:28]} 29. Bxc5 {[%emt 0:05:04]} Qxc5 {[%emt 0:00:05] [#]} 30. Ng5 $1 {[%emt 0:00:18][%mdl 512]} Rf8 {[%emt 0:01:16]} (30... Qxg5 31. Bxa8) 31. Ne6 {[%emt 0:00:09][%csl LRc5,LRf8]} Qe5 {[%emt 0:00:14]} 32. Nxf8 {[%emt 0:00:09]} Bxf8 {[%emt 0:00:03]} 33. Be4 {[%emt 0:00:12]} Kg7 {[%emt 0:00:10]} 34. h4 {[%emt 0:00:21]} Qd4 {[%emt 0:00:38]} 35. Kg2 {[%emt 0:00:28][%cal Oh4h5] And now h5! would win.} Qe3 {[%emt 0:00:06]} 36. Rf3 {[%emt 0:00:24]} Qd4 {[%emt 0:00:14] [#]} 37. h5 $1 {[%emt 0:00:24] Intending Rf4 and mate.} gxh5 {[%emt 0:01:29]} (37... Qe5 38. hxg6) 38. Rf5 {[%emt 0:03:25] White mates.} Qe3 {[%emt 0:00:08]} 39. R1f3 {[%emt 0:00:15]} (39. Rxh5 $2 {too greedy.} Qe2+ 40. Rf2 Qxh5 $19) 39... Qd2+ {[%emt 0:00:40]} 40. Rf2 {[%emt 0:00:31]} Qh6 {[%emt 0:01:16]} 41. R2f4 {[%emt 0:01:29]} Qg6 {[%emt 0:00:58]} 42. Rh4 {[%emt 0:01:23]} Qa6 {[%emt 0:00:23]} 43. Rhxh5 {[%emt 0:02:55]} h6 {[%emt 0:00:07]} 44. Rh4 {[%emt 0:00:27] Weighted Error Value: White=0.07 (flawless) /Black=0.48.  Mistake:       	---       	Black=4      Inaccurate:     	---       	Black=2      OK:         	White=5     	Black=6      Best:        	White=3     	---        Strong:       	White=1     	---} 1-0

[Event "Charlotte Spring GM-A 2024"]
[Site "Charlotte"]
[Date "2024.03.28"]
[Round "1.2"]
[White "Gauri, Shankar"]
[Black "Cordova, Emilio"]
[Result "1/2-1/2"]
[ECO "E15"]
[WhiteElo "2345"]
[BlackElo "2551"]
[Annotator "TA"]
[PlyCount "37"]
[EventDate "2024.03.27"]
[EventType "tourn"]
[EventCountry "USA"]
[SourceTitle "playchess.com"]
[Source "ChessBase"]
[SourceQuality "1"]
[TimeControl "5400+30"]

{[%evp 13,37,23,15,20,19,26,28,20,13,13,21,22,50,35,34,27,31,18,19,10,45,47,25,28,93,77]} 1. d4 {[%emt 0:06:07]} Nf6 {[%emt 0:00:51]} 2. Nf3 {[%emt 0:00:28]} e6 {[%emt 0:00:32]} 3. c4 {[%emt 0:00:39]} b6 {[%emt 0:02:44]} 4. g3 {[%emt 0:00:28]} Ba6 {[%emt 0:01:09]} 5. b3 {[%emt 0:00:51]} Bb7 {[%emt 0:00:24]} 6. Bg2 {[%emt 0:01:19]} Bb4+ {[%emt 0:00:07]} 7. Bd2 {[%emt 0:00:37]} a5 {[%emt 0:00:14]} 8. a3 {[%emt 0:06:19]} Bxd2+ {[%emt 0:00:43]} 9. Qxd2 {[%emt 0:02:38]} d5 {[%emt 0:08:29]} 10. Ne5 {[%emt 0:08:41] White has an edge.} Nbd7 {[%emt 0:00:43]} 11. Nc3 {[%emt 0:10:40]} O-O {[%emt 0:07:40]} 12. O-O {[%emt 0:06:14]} Re8 {[%emt 0:05:02]} 13. Rfd1 {[%emt 0:07:09]} Qe7 {[%emt 0:06:14]} 14. Qf4 {[%emt 0:18:34]} Rad8 {[%emt 0:06:45]} 15. e3 {[%emt 0:06:19][%cal Ob3b4]} h6 {[%emt 0:03:33]} 16. h4 {[%emt 0:07:07][%cal Ob3b4]} c6 {[%emt 0:17:54]} 17. Nxd7 {[%emt 0:04:42]} Nxd7 {[%emt 0:00:35]} 18. cxd5 {[%emt 0:02:56]} exd5 {[%emt 0:00:43]} (18... cxd5 $11 19. Nb5 Nf6) 19. Qc7 {[%emt 0:01:59] Weighted Error Value: White=0.02 (flawless) /Black=0.13 (very precise) .  Mistake:       	---       	Black=1      Inaccurate:     	---       	Black=2      OK:         	White=7     	Black=1} 1/2-1/2

[Event "Charlotte Spring GM-A 2024"]
[Site "Charlotte"]
[Date "2024.03.28"]
[Round "1.3"]
[White "Tsay, Vincent"]
[Black "Homa, Seth"]
[Result "1/2-1/2"]
[ECO "A45"]
[WhiteElo "2337"]
[BlackElo "2234"]
[Annotator "RC"]
[PlyCount "136"]
[EventDate "2024.03.27"]
[EventType "tourn"]
[EventCountry "USA"]
[SourceTitle "playchess.com"]
[Source "ChessBase"]
[SourceQuality "1"]
[TimeControl "5400+30"]

1. d4 {[%emt 0:08:44]} Nf6 {[%emt 0:00:16]} 2. Bf4 {[%emt 0:00:22]} c5 {[%emt 0:02:58]} 3. e3 {[%emt 0:00:44]} Qb6 {[%emt 0:00:21]} 4. Nc3 {[%emt 0:02:47]} d6 {[%emt 0:00:14]} 5. Bb5+ {[%emt 0:01:34]} Bd7 {[%emt 0:02:39]} 6. a4 {[%emt 0:01:27]} a6 {[%emt 0:00:13]} 7. a5 {[%emt 0:04:12]} Qc7 {[%emt 0:00:13]} 8. Bxd7+ {[%emt 0:03:57]} Nbxd7 {[%emt 0:00:35]} 9. Nf3 {[%emt 0:01:03]} g6 {[%emt 0:04:37]} 10. h3 {[%emt 0:00:21]} Bg7 {[%emt 0:00:15]} 11. O-O {[%emt 0:00:13]} O-O {[%emt 0:00:21]} 12. Bg5 {[%emt 0:06:09]} h6 {[%emt 0:22:23]} 13. Bh4 {[%emt 0:02:48]} b5 {[%emt 0:09:31]} 14. axb6 {[%emt 0:02:36]} Nxb6 {[%emt 0:01:36]} 15. dxc5 {[%emt 0:06:52]} dxc5 {[%emt 0:00:25]} 16. Qe2 {[%emt 0:02:22]} Nh5 {[%emt 0:09:41]} 17. g4 {[%emt 0:06:11]} Nf6 {[%emt 0:01:46]} 18. Rxa6 {[%emt 0:01:52]} Qb7 {[%emt 0:00:55]} 19. Rxa8 {[%emt 0:03:03]} Rxa8 {[%emt 0:00:16]} 20. Nd2 {[%emt 0:05:10]} Na4 {[%emt 0:04:59]} 21. Nxa4 {[%emt 0:04:16]} Rxa4 {[%emt 0:00:11]} 22. b3 {[%emt 0:00:37]} Ra2 {[%emt 0:00:08]} 23. Bxf6 {[%emt 0:00:53]} Bxf6 {[%emt 0:00:25]} 24. Qd3 {[%emt 0:00:36]} Qb4 {[%emt 0:13:11]} 25. Rd1 {[%emt 0:04:10]} Qc3 {[%emt 0:12:11]} 26. Qxc3 {[%emt 0:01:01]} Bxc3 {[%emt 0:00:08]} 27. Ne4 {[%emt 0:00:11]} Rxc2 {[%emt 0:00:12]} 28. Nxc5 {[%emt 0:00:12]} Rb2 {[%emt 0:00:08]} 29. Rd8+ {[%emt 0:07:09]} Kg7 {[%emt 0:00:11]} 30. Rb8 {[%emt 0:02:34]} Be5 {[%emt 0:00:14]} 31. Rb7 {[%emt 0:01:04]} Bf6 {[%emt 0:04:44]} 32. Ne4 {[%emt 0:04:33]} Bh4 {[%emt 0:00:25]} 33. Rb5 {[%emt 0:04:50]} e6 {[%emt 0:01:38]} 34. Rb7 {[%emt 0:00:28]} Kg8 {[%emt 0:02:18]} 35. Kg2 {[%emt 0:00:55]} Kg7 {[%emt 0:04:48]} 36. b4 {[%emt 0:01:16]} g5 {[%emt 0:00:10]} 37. b5 {[%emt 0:00:58]} Kg6 {[%emt 0:00:08]} 38. Ng3 {[%emt 0:04:00]} Kf6 {[%emt 0:00:08]} 39. Kf3 {[%emt 0:00:50]} Bxg3 {[%emt 0:01:29]} 40. Kxg3 {[%emt 0:00:05]} e5 {[%emt 0:01:31]} 41. b6 {[%emt 0:01:26]} e4 {[%emt 0:00:26]} 42. Rb8 {[%emt 0:00:26]} Rb3 {[%emt 0:01:15]} 43. b7 {[%emt 0:01:52]} Kg7 {[%emt 0:01:47]} 44. f3 {[%emt 0:00:34]} exf3 {[%emt 0:00:00]} 45. Kxf3 {[%emt 0:00:02]} Rb4 {[%emt 0:00:00]} 46. Ke2 {[%emt 0:00:20]} Rb3 {[%emt 0:00:00]} 47. Kd2 {[%emt 0:01:43]} Rb2+ {[%emt 0:00:13]} 48. Kc3 {[%emt 0:00:05]} Rb1 {[%emt 0:00:09]} 49. Kc4 {[%emt 0:00:09]} Rc1+ {[%emt 0:00:18]} 50. Kd5 {[%emt 0:00:08]} Rd1+ {[%emt 0:00:22]} 51. Kc6 {[%emt 0:00:16]} Rc1+ {[%emt 0:00:06]} 52. Kd7 {[%emt 0:00:12]} Rd1+ {[%emt 0:00:20]} 53. Ke7 {[%emt 0:00:10]} Rb1 {[%emt 0:00:06]} 54. e4 {[%emt 0:00:04]} Rb2 {[%emt 0:00:24]} 55. e5 {[%emt 0:00:47]} Rb1 {[%emt 0:00:19]} 56. e6 {[%emt 0:00:42]} fxe6 {[%emt 0:00:11]} 57. Kxe6 {[%emt 0:00:02]} Re1+ {[%emt 0:00:18]} 58. Kd5 {[%emt 0:00:38]} Rd1+ {[%emt 0:00:13]} 59. Kc4 {[%emt 0:00:12]} Rb1 {[%emt 0:00:16]} 60. Kc3 {[%emt 0:00:28]} Rb6 {[%emt 0:00:16]} 61. Kd4 {[%emt 0:00:11]} Rb1 {[%emt 0:00:11]} 62. Kc5 {[%emt 0:00:21]} Rc1+ {[%emt 0:00:10]} 63. Kb6 {[%emt 0:00:05]} Rb1+ {[%emt 0:00:11]} 64. Kc7 {[%emt 0:00:16]} Rc1+ {[%emt 0:00:10]} 65. Kd7 {[%emt 0:00:12]} Rd1+ {[%emt 0:00:07]} 66. Ke6 {[%emt 0:00:05]} Re1+ {[%emt 0:00:10]} 67. Kf5 {[%emt 0:00:11]} Rf1+ {[%emt 0:00:10]} 68. Ke4 {[%emt 0:00:02]} Rb1 {[%emt 0:00:14]} 1/2-1/2

[Event "Charlotte Spring GM-A 2024"]
[Site "Charlotte"]
[Date "2024.03.28"]
[Round "1.4"]
[White "Putnam, Liam"]
[Black "Levine, Joseph"]
[Result "1-0"]
[ECO "E04"]
[WhiteElo "2323"]
[BlackElo "2372"]
[Annotator "RC"]
[PlyCount "133"]
[EventDate "2024.03.27"]
[EventType "tourn"]
[EventCountry "USA"]
[SourceTitle "playchess.com"]
[Source "ChessBase"]
[SourceQuality "1"]
[TimeControl "5400+30"]

1. d4 {[%emt 0:00:04]} Nf6 {[%emt 0:00:05]} 2. c4 {[%emt 0:00:07]} e6 {[%emt 0:00:05]} 3. g3 {[%emt 0:00:14]} d5 {[%emt 0:00:07]} 4. Bg2 {[%emt 0:00:11]} dxc4 {[%emt 0:00:08]} 5. Nf3 {[%emt 0:00:04]} a6 {[%emt 0:00:07]} 6. O-O {[%emt 0:00:27]} Nc6 {[%emt 0:00:05]} 7. e3 {[%emt 0:00:13]} Bd7 {[%emt 0:00:34]} 8. Qe2 {[%emt 0:00:28]} Bd6 {[%emt 0:00:32]} 9. Qxc4 {[%emt 0:02:35]} O-O {[%emt 0:00:29]} 10. Nbd2 {[%emt 0:02:12]} Re8 {[%emt 0:05:31]} 11. Qe2 {[%emt 0:13:25]} e5 {[%emt 0:14:56]} 12. dxe5 {[%emt 0:01:03]} Bxe5 {[%emt 0:00:12]} 13. Nc4 {[%emt 0:01:32]} Bd4 {[%emt 0:03:37]} 14. Nxd4 {[%emt 0:16:37]} Nxd4 {[%emt 0:00:02]} 15. Qd3 {[%emt 0:03:17]} Nc6 {[%emt 0:01:20]} 16. b3 {[%emt 0:00:36]} b5 {[%emt 0:18:29]} 17. Nd2 {[%emt 0:08:00]} Qe7 {[%emt 0:18:55]} 18. Qc3 {[%emt 0:02:44]} b4 {[%emt 0:06:02]} 19. Qc2 {[%emt 0:00:17]} Qe6 {[%emt 0:00:44]} 20. Bb2 {[%emt 0:00:55]} Rac8 {[%emt 0:04:51]} 21. Rac1 {[%emt 0:03:35]} Ne5 {[%emt 0:02:30]} 22. Rfd1 {[%emt 0:04:53]} Bb5 {[%emt 0:03:17]} 23. Bxe5 {[%emt 0:08:26]} Qxe5 {[%emt 0:00:04]} 24. Nf3 {[%emt 0:00:11]} Qh5 {[%emt 0:05:03]} 25. Nd4 {[%emt 0:04:57]} c5 {[%emt 0:03:56]} 26. Nf5 {[%emt 0:00:27]} Re5 {[%emt 0:01:31]} 27. e4 {[%emt 0:03:07]} Be2 {[%emt 0:07:26]} 28. Re1 {[%emt 0:02:15]} Bf3 {[%emt 0:00:15]} 29. Bxf3 {[%emt 0:00:38]} Qxf3 {[%emt 0:00:02]} 30. Re3 {[%emt 0:01:24]} Qh5 {[%emt 0:00:48]} 31. f4 {[%emt 0:00:36]} Re6 {[%emt 0:00:34]} 32. Rce1 {[%emt 0:04:28]} g6 {[%emt 0:01:10]} 33. Nh4 {[%emt 0:00:51]} c4 {[%emt 0:00:55]} 34. e5 {[%emt 0:02:59]} Nd5 {[%emt 0:00:51]} 35. Re4 {[%emt 0:00:17]} c3 {[%emt 0:00:39]} 36. Rd4 {[%emt 0:00:35]} Ne7 {[%emt 0:01:56]} 37. Rxb4 {[%emt 0:01:04]} Rec6 {[%emt 0:00:16]} 38. Rd4 {[%emt 0:00:49]} Qg4 {[%emt 0:00:33]} 39. Red1 {[%emt 0:00:51]} Qe6 {[%emt 0:00:39]} 40. Kg2 {[%emt 0:03:58]} g5 {[%emt 0:00:35]} 41. Nf3 {[%emt 0:04:52]} Nf5 {[%emt 0:00:27]} 42. R4d3 {[%emt 0:00:58]} Qg6 {[%emt 0:00:25]} 43. Kf2 {[%emt 0:00:59]} g4 {[%emt 0:00:08]} 44. Ng5 {[%emt 0:01:56]} Nd4 {[%emt 0:01:03]} 45. Qc1 {[%emt 0:00:06]} c2 {[%emt 0:00:21]} 46. R1d2 {[%emt 0:00:06]} Ne6 {[%emt 0:00:39]} 47. Nxe6 {[%emt 0:02:07]} Qxe6 {[%emt 0:00:02]} 48. Rd8+ {[%emt 0:01:18]} Rxd8 {[%emt 0:00:21]} 49. Rxd8+ {[%emt 0:00:03]} Kg7 {[%emt 0:00:01]} 50. Rd6 {[%emt 0:00:38]} Qc8 {[%emt 0:00:58]} 51. Ke2 {[%emt 0:00:27]} h6 {[%emt 0:00:54]} 52. Rxc6 {[%emt 0:00:40]} Qxc6 {[%emt 0:00:01]} 53. Kd3 {[%emt 0:00:08]} a5 {[%emt 0:01:16]} 54. Qxc2 {[%emt 0:00:10]} Qd5+ {[%emt 0:00:14]} 55. Kc3 {[%emt 0:00:18]} Qc5+ {[%emt 0:00:08]} 56. Kb2 {[%emt 0:00:13]} Qd4+ {[%emt 0:00:21]} 57. Qc3 {[%emt 0:00:04]} Qf2+ {[%emt 0:00:07]} 58. Ka3 {[%emt 0:00:05]} Kg6 {[%emt 0:00:39]} 59. Qxa5 {[%emt 0:00:43]} Qxh2 {[%emt 0:00:12]} 60. Qa6+ {[%emt 0:00:09]} Kh7 {[%emt 0:00:16]} 61. Qf6 {[%emt 0:01:14]} Qxg3 {[%emt 0:00:21]} 62. Qxf7+ {[%emt 0:00:07]} Kh8 {[%emt 0:00:06]} 63. e6 {[%emt 0:00:33]} Qc3 {[%emt 0:00:14]} 64. Qe8+ {[%emt 0:00:45]} Kg7 {[%emt 0:00:09]} 65. Qd7+ {[%emt 0:00:01]} Kg8 {[%emt 0:00:29]} 66. e7 {[%emt 0:00:18]} Qc5+ {[%emt 0:00:25]} 67. Ka4 {[%emt 0:00:08]} 1-0

[Event "Charlotte Spring GM-A 2024"]
[Site "Charlotte"]
[Date "2024.03.27"]
[Round "1.5"]
[White "Chen, Ryo"]
[Black "Ali Marandi, Cemil Can"]
[Result "1/2-1/2"]
[ECO "B15"]
[WhiteElo "2316"]
[BlackElo "2516"]
[Annotator "TA"]
[PlyCount "41"]
[EventDate "2024.03.27"]
[EventType "tourn"]
[EventCountry "USA"]
[SourceTitle "playchess.com"]
[Source "ChessBase"]
[SourceQuality "1"]
[TimeControl "5400+30"]

{[%evp 15,41,13,17,14,15,20,23,11,14,8,17,14,16,17,17,15,18,20,17,17,22,0,0,0,0,0,0,0]} 1. e4 {[%emt 0:04:03]} c6 {[%emt 0:01:52]} 2. d4 {[%emt 0:00:18]} d5 {[%emt 0:00:07]} 3. Nd2 {[%emt 0:00:14]} dxe4 {[%emt 0:00:09]} 4. Nxe4 {[%emt 0:00:07]} Nf6 {[%emt 0:00:06]} 5. Nxf6+ {[%emt 0:00:12]} exf6 {[%emt 0:00:08]} 6. c3 {[%emt 0:00:13]} Bd6 {[%emt 0:00:10]} 7. Bd3 {[%emt 0:00:08]} O-O {[%emt 1:31:28]} 8. Ne2 {[%emt 0:00:15]} Re8 {[%emt 0:00:00]} 9. O-O {[%emt 0:00:15]} Nd7 {[%emt 0:01:00][%cal Bb8d7,Bd7f8,Bf8g6][%mdl 32]} 10. Bf4 {[%emt 0:01:32]} Nf8 {[%emt 0:00:00]} 11. Qd2 {[%emt 0:01:23] White has an edge.} Ng6 {[%emt 0:00:00][%cal Oe8e2] [#] And now ...Rxe2! would win. The position is equal.} 12. Bxd6 {[%emt 0:00:14]} Qxd6 {[%emt 0:00:00]} 13. Rfe1 {[%emt 0:04:10]} Be6 {[%emt 0:00:00]} 14. Ng3 {[%emt 0:09:41]} Re7 {[%emt 0:02:30]} 15. Nf5 {[%emt 0:26:14]} Bxf5 {[%emt 0:00:00]} 16. Bxf5 {[%emt 0:00:03]} Rae8 {[%emt 0:00:00]} 17. Rxe7 {[%emt 0:01:50]} Rxe7 {[%emt 0:00:00]} 18. Bxg6 {[%emt 0:07:54]} hxg6 {[%emt 0:00:00]} 19. Re1 {[%emt 0:00:48]} Re6 {[%emt 0:00:00]} 20. Rxe6 {[%emt 0:02:56]} Qxe6 {[%emt 0:00:00]} 21. b3 {[%emt 0:02:41] A rather calm draw.   Weighted Error Value: White=0.04 (flawless) /Black=0.00 (flawless) .  OK:         	White=4     	Black=4} 1/2-1/2

[Event "Charlotte Spring GM-A 2024"]
[Site "Charlotte"]
[Date "2024.03.28"]
[Round "2.1"]
[White "Wang, Tianqi"]
[Black "Ali Marandi, Cemil Can"]
[Result "0-1"]
[ECO "D34"]
[WhiteElo "2344"]
[BlackElo "2516"]
[Annotator "TA"]
[PlyCount "68"]
[EventDate "2024.03.27"]
[EventType "tourn"]
[EventCountry "USA"]
[SourceTitle "playchess.com"]
[Source "ChessBase"]
[SourceQuality "1"]
[TimeControl "5400+30"]

{[%evp 21,68,27,46,22,23,29,32,42,25,7,50,0,0,0,-16,-41,-64,-57,0,0,0,0,30,-4,0,0,8,-28,18,-55,-66,-68,-24,-247,-84,-525,-511,-495,-491,-516,-525,-886,-847,-949,-806,-974,-929,-910,-895]} 1. Nf3 {[%emt 0:02:54]} d5 {[%emt 0:00:19]} 2. c4 {[%emt 0:00:06]} e6 {[%emt 0:00:31]} 3. g3 {[%emt 0:00:08]} Nf6 {[%emt 0:00:37]} 4. Bg2 {[%emt 0:00:08]} Be7 {[%emt 0:01:02]} 5. O-O {[%emt 0:00:20]} O-O {[%emt 0:00:05]} 6. b3 {[%emt 0:00:34]} c5 {[%emt 0:00:08]} 7. cxd5 {[%emt 0:00:12]} exd5 {[%emt 0:01:42]} 8. d4 {[%emt 0:00:23]} Nc6 {[%emt 0:00:25]} 9. Bb2 {[%emt 0:03:18]} Re8 {[%emt 0:00:39]} 10. Nc3 {[%emt 0:01:03]} Bg4 {[%emt 0:01:56]} 11. dxc5 {[%emt 0:01:14]} Bxc5 {[%emt 0:02:23]} 12. Na4 {[%emt 0:00:54]} Bf8 {[%emt 0:02:23]} 13. Rc1 {[%emt 0:00:45]} Qe7 {[%emt 0:00:56]} 14. Re1 {[%emt 0:02:10] White is slightly better.} Rac8 {[%emt 0:05:14]} 15. h3 {[%emt 0:09:08]} Bh5 {[%emt 0:02:45]} 16. Nd4 {[%emt 0:11:40]} (16. Bxf6 $14 Qxf6 17. Qxd5 Bxf3 18. Qxf3 Qxf3 19. Bxf3) 16... Ne4 $11 {[%emt 0:09:24][%cal Oe4f2]} 17. Nxc6 {[%emt 0:07:44]} bxc6 {[%emt 0:01:51]} 18. Qd4 {[%emt 0:15:19]} Qg5 {[%emt 0:03:41]} 19. Rcd1 {[%emt 0:26:04]} Rcd8 {[%emt 0:06:10]} (19... f5 $15) 20. Bc1 $1 {[%emt 0:04:36]} Qe7 {[%emt 0:01:05]} 21. Bxe4 {[%emt 0:02:16]} dxe4 {[%emt 0:02:31]} 22. Qe3 {[%emt 0:00:06]} f5 {[%emt 0:04:14]} 23. Kf1 {[%emt 0:02:00]} Qf7 {[%emt 0:06:39]} 24. Bb2 {[%emt 0:00:40]} Bb4 {[%emt 0:08:10]} (24... Bd6 $142 25. Bc1 h6) 25. Bc3 {[%emt 0:00:54]} ({Better is} 25. Rxd8 $11 Rxd8 26. Bc3) 25... Bd6 $15 {[%emt 0:01:54] Threatens to win with ...f4.} 26. Qd4 $1 {[%emt 0:03:08]} e3 {[%emt 0:05:54]} 27. f3 $2 {[%emt 0:00:29]} (27. f4 $11 {and White has nothing to worry.}) 27... Bc7 $2 {[%emt 0:00:59]} ({And not} 27... Bxg3 28. Qxd8 Qg6 29. Qd7 $16) (27... Qc7 $19 {and Black stays clearly on top.} 28. Qh4 Bxg3) 28. Qh4 {[%emt 0:00:27][%mdl 8192]} (28. Qc4 $17) 28... Rxd1 $19 {[%emt 0:00:36] Black is clearly winning.} 29. Rxd1 {[%emt 0:01:16] [#]} Bxf3 {[%emt 0:00:07][%cal Of5f4][%mdl 512]} 30. Nc5 {[%emt 0:01:25]} (30. Rd4 Bd5) 30... Bd5 {[%emt 0:00:12] ...f4 is the strong threat. This pair of bishops is nice.} 31. Nd3 {[%emt 0:00:25]} Re4 {[%emt 0:02:30]} 32. Nf4 {[%emt 0:00:08]} h6 {[%emt 0:02:13]} 33. Rd4 {[%emt 0:02:01]} Bxf4 {[%emt 0:02:08]} ({Not} 33... g5 $2 34. Qxh6 Qh7 (34... gxf4 35. Rxe4) 35. Qxg5+ Kf8 36. Rxe4 fxe4 37. Nh5 $18) 34. gxf4 {[%emt 0:00:52] [#]} Qg6 $1 {[%emt 0:00:13] Weighted Error Value: White=0.71/Black=0.20 (precise) .  Loses game:     	White=2     	---        Missed win:     	---       	Black=1      Mistake:       	White=2     	Black=2      Inaccurate:     	White=3     	Black=3      OK:         	White=6     	Black=5      Best:        	---       	Black=2      Strong:       	White=2     	---        Brilliant:      	---       	Black=1} 0-1